Cogmind - Beta 16.1 @@@ ROGUE MODE // 2026.02.24 @ 17:42:42 Player: Ceorik Result: Destroyed by D-53 Grenadier with Mini Grenade Launcher Performance ------------- Evolutions (1) 500 Regions Visited (3) 600 Robots Destroyed (35) 175 Value Destroyed (940) 940 Prototype IDs (0) 0 Alien Tech Used (0) 0 Bonus (0) 0 TOTAL SCORE: 2215 Bonus ------- None Cogmind --------- Core Integrity 0/400 Matter 279/300 Energy 21/125 System Corruption 1% Temperature Cool (0) Movement Treading (160) Location -9/Mines Parts ------- > --- POWER (1) -------- Light Ion Engine > --- PROPULSION (3) --- Light Treads Light Treads > --- UTILITY (3) ------ Large Storage Unit Targeting Computer > --- WEAPON (2) ------- Beam Cannon > --- INVENTORY (15) --- Heat Sink Cooling System High-capacity Matter Pod (200) Improved Terrain Scanner Propulsion Shielding Medium Armor Plating Shield Generator Mini Grenade Launcher Mining Claw Peak State ------------ > --- POWER ------------ Improved Ion Engine > --- PROPULSION ------- Light Treads Light Treads Light Treads > --- UTILITY ---------- Large Storage Unit Targeting Computer Light Armor Plating > --- WEAPON ----------- EM Shotgun EMP Blaster > --- INVENTORY -------- Ion Engine Light Ion Engine Light Treads Light Treads Heat Sink Medium Storage Unit High-capacity Matter Pod Improved Terrain Scanner Propulsion Shielding Light Armor Plating Medium Armor Plating Beam Cannon Heavy Assault Rifle EMP Blaster Mining Claw [Rating: 14] Favorites ----------- Power Improved Ion Engine Engine Improved Ion Engine Propulsion Light Treads Treads Light Treads Utility Large Storage Unit Device Seismic Detector Storage Large Storage Unit Processor Targeting Computer Protection Light Armor Plating Weapon Assault Rifle Energy Gun EM Pulse Gun Energy Cannon Beam Cannon Ballistic Gun Assault Rifle Launcher EMP Blaster Slashing Weapon Mining Claw Build | -11 -10 -9 -9 ------- Run | Yrd Mat Mat Min Slots Evolved 2 | . . 2 . Power . | . . . . Propulsion 1 | . . 1 . Utility 1 | . . 1 . Weapon . | . . . . Parts Attached 37 | 8 5 20 4 Power 4 | 1 . 2 1 Engine 4 | 1 . 2 1 Core . | . . . . Reactor . | . . . . Propulsion 9 | 2 . 5 2 Treads 9 | 2 . 5 2 Leg . | . . . . Wheel . | . . . . Hover . | . . . . Flight . | . . . . Utility 10 | 2 3 5 . Device 2 | 1 . 1 . Storage 3 | 1 2 . . Processor 1 | . . 1 . Hackware . | . . . . Protection 4 | . 1 3 . Artifact . | . . . . Weapon 14 | 3 2 8 1 Energy Gun 6 | 1 . 5 . Energy Cannon 1 | . . 1 . Ballistic Gun 4 | 2 2 . . Ballistic Cannon . | . . . . Launcher 2 | . . 1 1 Special Weapon . | . . . . Impact Weapon . | . . . . Slashing Weapon 1 | . . 1 . Piercing Weapon . | . . . . Special Melee Weapon . | . . . . Unidentified Prototypes . | . . . . Parts Lost 16 | . . 7 9 Power 2 | . . . 2 Propulsion 5 | . . 2 3 Utility 2 | . . 1 1 Weapon 7 | . . 4 3 Highest Loss Streak 8 | . . 4 8 To Critical Strikes . | . . . . Average Backups 12 | 1 8 14 13 Power 1 | . . 2 1 Propulsion 2 | . 1 2 1 Utility 6 | . 2 7 7 Weapon 2 | . 3 2 3 Tool/Special . | . . . . Unused Backups 13 | . . 5 8 Power . | . . . . Propulsion . | . . . . Utility 8 | . . 1 7 Weapon 5 | . . 4 1 Tool/Special . | . . . . Average Slot Usage (%) 99 | . 100 99 96 Engine 11 | . 14 11 11 Treads 31 | . 28 32 31 Device 2 | . 11 1 . Storage 11 | . 14 11 11 Processor 8 | . . 10 11 Protection 8 | . 2 9 10 Energy Gun 7 | . . 8 9 Energy Cannon 3 | . . 4 . Ballistic Gun 5 | . 28 . . Launcher 3 | . . 3 11 Slashing Weapon 3 | . . 4 . Peak Build Rating 14 | 7 8 14 14 Average Rating 11 | 5 7 12 12 On Entrance 7 | . 7 8 14 Avg Prop Armor Cover (%) . | . . . . Naked Turns . | . . . . Heaviest Build 37 | 15 32 37 37 Greatest Support 60 | 40 40 60 60 Greatest Overweight (x) . | . . . . Average Overweight (x) . | . . . . Largest Inventory Capacity 15 | 8 15 15 15 Average Capacity 14 | 7 12 15 15 Most Carried 15 | 2 15 15 15 Average Carried 12 | 1 8 14 13 Final Capacity 15 | 8 15 15 15 Final Carried 15 | 2 15 15 9 Class Distribution -------------------- 57% | Scavenger-Mutant 42% | Mutant Dominant Class ---------------- Mutant | -10/Materials Scavenger-Mutant | -9/Materials Scavenger-Mutant | -9/Mines Resources | -11 -10 -9 -9 ----------- Run | Yrd Mat Mat Min Matter Collected 1081 | 334 174 455 118 Remotely . | . . . . Salvage Created 1443 | 130 169 835 309 Parts 85 | 7 10 53 15 Haulers Intercepted 1 | . 1 . . Recyclers Shooed 2 | 1 . 1 . Parts Field Recycled . | . . . . Retrieved Matter . | . . . . Parts Self-Destructed . | . . . . Prevented . | . . . . Parts Restored . | . . . . Kills | -11 -10 -9 -9 ------- Run | Yrd Mat Mat Min Combat Hostiles Destroyed 28 | . 4 18 6 Melee 2 | . . 2 . Guns 13 | . 4 9 . AOE 10 | . . 6 4 Classes Destroyed 9 | 2 3 4 . Builder 1 | . . 1 . Tunneler 2 | 2 . . . Hauler 1 | . 1 . . Recycler 2 | 1 . 1 . Watcher 1 | . . 1 . Swarmer 9 | . 2 7 . Grunt 9 | . 2 4 3 Brawler 2 | . . 1 1 Sentry 8 | . . 6 2 Best Kill Streak 6 | 2 2 6 3 Combat Bots Only 4 | . 2 4 3 Max Kills in Single Turn 3 | 1 1 3 2 Gunslinging 1 | . . 1 . Exploded 3 | . . 3 2 Melee 1 | . . 1 . Uniques/NPCs Destroyed . | . . . . Combat | -11 -10 -9 -9 -------- Run | Yrd Mat Mat Min Hostile Shots Fired 222 | . 34 122 66 Missed 66 | . 11 33 22 Hits 156 | . 23 89 44 Melee 1 | . . . 1 Projectile 155 | . 23 89 43 AOE 14 | . . . 14 Critical Strikes 2 | . . 1 1 Damage Taken 2434 | . 279 1163 992 Core 441 | . 41 204 196 Absorbed by Shields . | . . . . Core Remaining (%) 91 | 100 83 . . Volleys Fired 108 | 9 25 46 28 Largest 2 | 2 2 2 1 Hottest 100 | 40 40 100 60 Shots Fired 174 | 18 50 78 28 Gun 143 | 18 50 66 9 Cannon 7 | . . 6 1 Launcher 24 | . . 6 18 Special . | . . . . Kinetic 68 | 18 50 . . Thermal 7 | . . 6 1 Explosive . | . . . . Electromagnetic 99 | . . 72 27 Robot Hit Streak 8 | 4 6 8 6 Robot Miss Streak 10 | 2 7 10 4 Penetration Max . | . . . . Secondary Targets 2 | . 1 1 . Max Gunslinging Chain 1 | . 1 1 . Shots Hit Robots 98 | 11 28 46 13 Core Hits 51 | 4 9 26 12 Critical Kills . | . . . . Critical Parts Destroyed 1 | . 1 . . Critical Strikes 2 | . 1 1 . Destroy 1 | . 1 . . Corrupt 1 | . . 1 . Melee Attacks 6 | . . 6 . Impact . | . . . . Slashing 6 | . . 6 . Piercing . | . . . . Sneak Attacks . | . . . . Combat Hostiles . | . . . . Follow-up Attacks . | . . . . Damage Inflicted 2322 | 128 361 1082 751 Guns 1080 | 128 361 500 91 Cannons 69 | . . 69 . Explosions 1125 | . . 465 660 Melee 48 | . . 48 . Ramming . | . . . . Kinetic 489 | 128 361 . . Thermal 404 | . . 341 63 Explosive 50 | . . 50 . Electromagnetic 1331 | . . 643 688 Impact . | . . . . Slashing 48 | . . 48 . Piercing . | . . . . Highest Corruption 1 | . . . 1 Average Corruption 1 | . . . 1 Corruption Purged . | . . . . Corruption Blocked . | . . . . Effects 3 | . . . 3 Matter Fused 1 | . . . 1 Heat Flow Errors 1 | . . . 1 Energy Discharges 1 | . . . 1 Overload Shots . | . . . . Overflow Damage 10 | . . 10 . Projectiles . | . . . . Explosions 10 | . . 10 . Melee . | . . . . Knockbacks . | . . . . Impact . | . . . . Kinetic . | . . . . Secondary . | . . . . Self-Inflicted Damage 358 | . . 247 111 Shots 12 | . . 5 7 Rammed . | . . . . Targets Rammed . | . . . . Kicked . | . . . . Crushed . | . . . . Highest Temperature 324 | . 9 240 324 Average Temperature 83 | . 3 80 109 Received Heat Transfer 483 | . 126 192 165 Siege Activations . | . . . . Martial Activations . | . . . . Shielding Activations . | . . . . Robots Disrupted 1 | . . 1 . Combat Hostiles 1 | . . 1 . Robots Corrupted 3 | . . 1 2 Combat Hostiles 3 | . . 1 2 Parts Fried 4 | . . 1 3 Impact Corruptions . | . . . . Robots Melted . | . . . . Combat Hostiles . | . . . . Parts Melted 1 | . . 1 . Heat Transferred 448 | . . 348 100 Parts Sabotaged . | . . . . Parts Stolen . | . . . . Parts Stripped . | . . . . Power Chain Reactions 7 | . . 4 3 Alert | -11 -10 -9 -9 ------- Run | Yrd Mat Mat Min Maximum Alert Level 1 | . . 1 . Low Security (%) 91 | 100 100 88 100 Level 1 8 | . . 11 . Level 2 . | . . . . Level 3 . | . . . . Level 4 . | . . . . Level 5 . | . . . . High Security . | . . . . Max Security . | . . . . Peak Influence 259 | 10 56 259 145 Initial 20 | . . . 20 Average 71 | 1 10 92 61 Influence Increases 947 | 15 118 603 211 Destroy 0b10 Robot/C 560 | . 80 360 120 Destroy 0b10 Robot/NC 35 | 15 5 15 . Destroy Leader 144 | . 12 112 20 Successful Hack 5 | . 5 . . Disable Machine 75 | . . 60 15 Destroy Structure 53 | . 1 41 11 Lose Combat Pursuer 75 | . 15 15 45 Influence Decreases 910 | 15 118 550 227 Entered New Map 33 | . . . 33 Time Decay 727 | 15 118 480 114 Lost Part 150 | . . 70 80 Squads Dispatched 3 | . . 2 1 Investigation 1 | . . 1 . Extermination . | . . . . Reinforcement 2 | . . 1 1 Assault . | . . . . Garrison . | . . . . Intercept . | . . . . Searches Triggered . | . . . . Construction Impeded 1 | . . . 1 Haulers Reinforced . | . . . . Active Scanning Responses . | . . . . Cargo Convoy Interrupts . | . . . . Stealth | -11 -10 -9 -9 --------- Run | Yrd Mat Mat Min Distress Signals 2 | . . 1 1 Communications Jammed . | . . . . Distress Signals . | . . . . Times Spotted 43 | . 8 26 9 Peak Tracking Total 5 | . 4 5 3 Tactical Retreats 3 | . 1 1 1 Traps | -11 -10 -9 -9 ------- Run | Yrd Mat Mat Min Traps Triggered 1 | . . 1 . Indirectly . | . . . . Trap Hack Attempts . | . . . . Triggered . | . . . . Disarmed . | . . . . Reprogrammed . | . . . . Reused . | . . . . Traps Extracted . | . . . . Installed . | . . . . Triggered . | . . . . Machines | -11 -10 -9 -9 ---------- Run | Yrd Mat Mat Min Machines Disabled 7 | . . 4 3 Max in Single Turn 2 | . . 2 2 Machines Repaired . | . . . . Machines Dismantled . | . . . . Machines Sabotaged . | . . . . Overloaded Fab Kills . | . . . . Hacking | -11 -10 -9 -9 --------- Run | Yrd Mat Mat Min Machines Accessed 6 | . 3 3 . Terminals 5 | . 3 2 . Fabricators . | . . . . Repair Stations . | . . . . Recycling Units 1 | . . 1 . Scanalyzers . | . . . . Garrison Access . | . . . . Total Hacks 12 | . 9 3 . Successful 3 | . 2 1 . Failed 9 | . 7 2 . Catastrophic 2 | . . 2 . Database Lockouts . | . . . . Manual 11 | . 9 2 . Terminals 11 | . 9 2 . Fabricators . | . . . . Repair Stations . | . . . . Recycling Units 1 | . . 1 . Scanalyzers . | . . . . Garrison Access . | . . . . Terminal Hacks . | . . . . Fabricator Hacks . | . . . . Repair Station Hacks . | . . . . Recycling Unit Hacks 1 | . . 1 . Report Inventory 1 | . . 1 . Scanalyzer . | . . . . Garrison Access Hacks . | . . . . Unauthorized Hacks 2 | . 2 . . Terminals 2 | . 2 . . Botnet 2 | . 2 . . Fabricators . | . . . . Repair Stations . | . . . . Recycling Units . | . . . . Scanalyzers . | . . . . Garrison Access . | . . . . Data Cores Recovered . | . . . . Used . | . . . . Hacking Detections 6 | . 3 3 . Full Trace Events . | . . . . Feedback Events . | . . . . Feedback Blocked . | . . . . Robot Schematics Acquired . | . . . . Robots Built . | . . . . Authchips . | . . . . Time . | . . . . Total Robot Build Rating . | . . . . Part Schematics Acquired . | . . . . Parts Built . | . . . . Authchips . | . . . . Time . | . . . . Total Part Build Rating . | . . . . Part Studies Acquired . | . . . . Parts Repaired . | . . . . Time . | . . . . Parts Recycled . | . . . . Recycled Matter . | . . . . Retrieved Matter . | . . . . Retrieved Components . | . . . . Parts Scanalyzed . | . . . . Part Schematics Acquired . | . . . . Parts Damaged . | . . . . Bothacking | -11 -10 -9 -9 ------------ Run | Yrd Mat Mat Min Used RIF Installer . | . . . . Robots Hacked . | . . . . Non-combat . | . . . . Combat . | . . . . Robot Hacks Applied . | . . . . Relay Couplers Released . | . . . . Fabnet Peak Effective % . | . . . . Robots Rewired . | . . . . Allies Hacked . | . . . . Hacks Repelled . | . . . . Allies | -11 -10 -9 -9 -------- Run | Yrd Mat Mat Min Total Allies . | . . . . Largest Group . | . . . . Highest-Rated Group . | . . . . Highest-Rated Ally . | . . . . Total Orders . | . . . . Ally Attacks . | . . . . Total Damage . | . . . . Kills . | . . . . Allies Corrupted . | . . . . Allies Melted . | . . . . Intel | -11 -10 -9 -9 ------- Run | Yrd Mat Mat Min Active Infowar (turns) 717 | 21 493 203 . Sensors 198 | . . 198 . Seismic 519 | 21 493 5 . Robot Analysis Total . | . . . . Derelict Logs Recovered . | . . . . Drone Launches . | . . . . Drone Recoveries . | . . . . Exploration | -11 -10 -9 -9 ------------- Run | Yrd Mat Mat Min Turns Passed 3356 | 159 585 2316 296 Spaces Moved 1301 | 77 305 775 144 Core 4 | 4 . . . Treads 1297 | 73 305 775 144 Legs . | . . . . Wheels . | . . . . Hover . | . . . . Flight . | . . . . Fastest Speed 50 | 50 160 160 160 Average Speed 159 | 154 160 160 160 Slowest Speed 160 | 160 160 160 160 Overloaded Moves . | . . . . Propulsion Burnouts . | . . . . Robots Hopped . | . . . . Potential Cave-ins . | . . . . Cave-ins Triggered . | . . . . Exploration Rate (%) 35 | 5 55 48 32 Regions Visited 3 Branch Regions 1 Pre-discovered Areas . | . . . . Known Exits Taken . | . . . . Unknown Exits Taken 3 | 1 1 1 . Scrap Searched . | . . . . Spaces Dug 3 | . . . 3 Terrain Destroyed 51 | . . 42 9 Melee . | . . . . Projectile . | . . . . AOE 51 | . . 42 9 Terrain Rammed . | . . . . Walls Destroyed . | . . . . Machines Disabled . | . . . . Actions | -11 -10 -9 -9 --------- Run | Yrd Mat Mat Min Total 2392 | 95 350 1765 182 Wait 880 | . 4 872 4 Move 1298 | 76 304 774 144 Hop . | . . . . Pick Up 34 | 2 10 22 . Fast Attach 9 | 7 . 2 . Attach 17 | . . 11 6 Detach . | . . . . Swap 20 | 1 6 13 . Drop 20 | . 1 19 . Fire 108 | 9 25 46 28 Melee 6 | . . 6 . Ram . | . . . . Kick . | . . . . Crush . | . . . . Escape Stasis . | . . . . Rewire . | . . . . Trap . | . . . . Miscellaneous . | . . . . Route ------- -11/Scrapyard -10/Materials -9/Materials (discovered 2 exits: [*Mat] / [*Min]) -9/Mines (discovered 1 exit: [*Mat]) History --------- Turn | Location | Event 10 | -11/Scrapyard | Discovered new exit (range 16) 160 | -11/Scrapyard | Entered Materials 314 | -10/Materials | Build established: Mutant 702 | -10/Materials | Discovered new exit (range 4) 745 | -10/Materials | Entered another Materials area 745 | -9/Materials | Evolved 2 slots: Propulsion x1, Utility x1 1261 | -9/Materials | Lost 4 parts (1u3w) 1379 | -9/Materials | Discovered new exit (range 5) 1709 | -9/Materials | Build established: Scavenger-Mutant 2389 | -9/Materials | Discovered new exit (range 12) 2825 | -9/Materials | Core integrity fell below 50% 3061 | -9/Materials | Entered Mines 3069 | -9/Mines | Met a Derelict bent on vengeance 3267 | -9/Mines | Discovered new exit (range 3) 3323 | -9/Mines | Assembled infested the area 3344 | -9/Mines | Core integrity fell below 20% 3357 | -9/Mines | Destroyed by D-53 Grenadier with Mini Grenade Launcher Last Messages --------------- dispatching Demolisher response squad. 03326_ Acquired 10 matter. 03334_ C-45 Heavy ARC bursts open, deploying its payload. 03334_ D-53 Grenadier unfolds itself. 03334_ T-07 Excavator destroyed. 03336_ Lgt. Treads destroyed. 03339_ D-53 Grenadier misfires. 03339_ D-53 Grenadier destroyed. 03342_ System corrupted: Energy discharge (-11). 03343_ Lgt. Treads destroyed. 03346_ The unstable cave ceiling collapses. 03347_ Lgt. Armor Plating destroyed. 03349_ The unstable cave ceiling collapses. 03350_ U-05 Engineer lays Concrete. 03352_ U-05 Engineer builds a Wall. 03354_ The unstable cave ceiling collapses. 03355_ Ion Engine destroyed. 03356_ U-05 Engineer builds a Wall. 03357_ EMP Blaster destroyed. Map ----- +----------------------------------------------------+ | ?????????????????????????????????????????????????? | | ?????????????????????????????????????????????????? | | ?????????????????????????????????????????????????? | | ?????????????????????????????????????????????????? | | ?????????????????????????????????????????????????? | | ?????????????????????????????????????????????????? | | ?????????????????????????????????????????????????? | | ?????????????????????????????????????????????????? | | ?????????????????????????????????????????????????? | | ?????????????????????????????????????????????????? | | ?????????????????????????????????????????????????? | | ?????????????????????????????????????????????????? | | ?????????????????????????????????????????????????? | | ?????????????????????????????????????????????????? | | ?????????????????????????????????????????????????? | | ???????????????###???????????????????????????????? | | ??????????????? #???????????????????????????????? | | ???????????????# #???????????????????????????????? | | ???????????????# #????#########??????????????????? | | ???????????????# #???### # ##?????????????????? | | ???####????????# ##??# ! ##????????????????? | | ??## ##??????## #### ##???????????????? | | ??# ######## ## [ #???????????????? | | ??# ## ##??????????????? | | ??# < ### #??#???????????? | | ??# #### # @ # ##??????????? | | ??## #### ## #### # ?????????? | | ???## #####??# d t t #????? | | ??## % ### #??????# ##! #????? | | ??#"! %##?# #??????# !%= # ########?????? | | ###" == #??# ###????###%* ##????????????? | | ##### ##????# #######?????????????? | | = "### #????## #??????????????????? | | ### #????#### #?????????????????? | | "" ##?# ## ##???????## ##?????????????????? | | "" #??## #?## #?????????######??????????????????? | | """ ##??##???# #?????????????????????????????????? | | #????#### ####??????????????????????????????? | | #????# #??????????????????????????????? | | ## ##????# """ #??????????????????????????????? | | #####?????# """ #??????????????????????????????? | | ??????????# """ #??????????????????????????????? | | ??????????# #??????????????????????????????? | | ??????????#########??????????????????????????????? | | ?????????????????????????????????????????????????? | | | | | | | | | | | +----------------------------------------------------+ Best States ------------- Heat Dissipation 28 Energy Generation 12 Energy Capacity 265 Matter Stores 300 Matter Capacity 300 Sight Range 16 Robot Scan Range 14 Terrain Scan Density 10 Armor Coverage 150 Evasion (%) 40 Targeting Accuracy 5 Recoil Reduction 3 Item Schematics ----------------- None Robot Schematics ------------------ None Fabricated ------------ Nothing Repaired ---------- Nothing Studied --------- None Alien Tech Used ----------------- None Achievements -------------- None Challenges ------------ None Game ------ Seed KineticSuperchargedTracker Manual? 0 Play Time 00:18:02 Cumulative 66.1 hours Start 2026.02.24 @ 17:25:08 End 2026.02.24 @ 17:42:42 Sessions 1 Manual Loads 0 Difficulty Rogue Special Mode None Game No. 69 Rogue 69 Adventurer 0 Explorer 0 Win Type - Total 0 Types 0/0/0/0/0/0/0/0/0/0 Lore% 55 Gallery% 40 Achievement% 33 Wizard Run 0 Options --------- Layout 1 ASCII 0 Keyboard 0 Movement Mouse Keybinds 0 Fullscreen 1 Font 24/Swanston Map View 50x35 Zoom Use 0% Tactical HUD 1 Map Filters NONE Filters NONE Steam 1 RUN: fa9566c6-7899-41af-bed8-36f640f224a6